Cogmind - Beta 15 @@@ ROGUE MODE // 2025.06.04 @ 19:37:04 Player: Figgis Result: Self-destructed Performance ------------- Evolutions (0) 0 Regions Visited (3) 600 Robots Destroyed (9) 45 Value Destroyed (277) 277 Prototype IDs (16) 320 Alien Tech Used (0) 0 Bonus (800) 800 TOTAL SCORE: 2042 Bonus ------- Registered with UFD 300 Met Optimus in HQ 500 Cogmind --------- Core Integrity 46/250 Matter 300/300 Energy 140/140 System Corruption 0% Temperature Cool (0) Movement Walking (125) Location -7/Scraptown Parts ------- > --- POWER (1) -------- Light Deuterium Engine > --- PROPULSION (2) --- Improved Titanium Leg Flexi-carbon Leg > --- UTILITY (2) ------ Large Storage Unit A0-MCA's Component Scanner > --- WEAPON (2) ------- Scythe Ripteeth > --- INVENTORY (15) --- Light Deuterium Engine Light Nuclear Core Improved Flight Unit Improved Flight Unit Improved Flight Unit Cesium-ion Thruster Makeshift Flight Unit Advanced Terrain Scanner Advanced Terrain Scan Processor Surveybot 17 Chip Improved Propulsion Shielding Makeshift Hacking Suite Mapping Drone Bay (3/3) Scrapoid Pod Peak State ------------ > --- POWER ------------ Light Deuterium Engine > --- PROPULSION ------- Improved Titanium Leg Flexi-carbon Leg > --- UTILITY ---------- Large Storage Unit A0-MCA's Component Scanner > --- WEAPON ----------- Scythe Ripteeth > --- INVENTORY -------- Light Deuterium Engine Light Nuclear Core Improved Flight Unit Improved Flight Unit Improved Flight Unit Cesium-ion Thruster Makeshift Flight Unit Advanced Terrain Scanner Advanced Terrain Scan Processor Surveybot 17 Chip Improved Propulsion Shielding Mapping Drone Bay Scrapoid Pod Subdweller Machine Gun [Rating: 35] Favorites ----------- Power Light Ion Engine Engine Light Ion Engine Propulsion Aluminum Leg Leg Aluminum Leg Flight Unit Improved Flight Unit Utility Large Storage Unit Storage Large Storage Unit Processor A0-MCA's Component Scanner Hackware System Shield Weapon Particle Gun Energy Gun Particle Gun Ballistic Gun Subdweller Machine Gun Slashing Weapon Ripteeth Build | -11 -10 -10 -7 ------- Run | Yrd Mat Sub Scr Slots Evolved . | . . . . Power . | . . . . Propulsion . | . . . . Utility . | . . . . Weapon . | . . . . Parts Attached 26 | 3 6 6 11 Power 2 | 1 . . 1 Engine 2 | 1 . . 1 Core . | . . . . Reactor . | . . . . Propulsion 12 | 2 2 4 4 Treads . | . . . . Leg 11 | 2 1 4 4 Wheel . | . . . . Hover . | . . . . Flight 1 | . 1 . . Utility 5 | . 2 . 3 Device . | . . . . Storage 3 | . 2 . 1 Processor 1 | . . . 1 Hackware 1 | . . . 1 Protection . | . . . . Artifact . | . . . . Weapon 7 | . 2 2 3 Energy Gun 3 | . 2 1 . Energy Cannon . | . . . . Ballistic Gun 2 | . . 1 1 Ballistic Cannon . | . . . . Launcher . | . . . . Special Weapon . | . . . . Impact Weapon . | . . . . Slashing Weapon 2 | . . . 2 Piercing Weapon . | . . . . Special Melee Weapon . | . . . . Unidentified Prototypes 1 | . 1 . . Parts Lost 7 | . . 7 . Power . | . . . . Propulsion 5 | . . 5 . Utility . | . . . . Weapon 2 | . . 2 . Highest Loss Streak 4 | . . 4 . To Critical Strikes . | . . . . Average Backups 11 | 2 6 10 12 Power 1 | . 1 1 1 Propulsion 5 | . 3 5 5 Utility 2 | . . . 3 Weapon 2 | 1 1 3 1 Tool/Special . | . . . . Unused Backups 23 | . . . 23 Power 4 | . . . 4 Propulsion 6 | . . . 6 Utility 8 | . . . 8 Weapon 4 | . . . 4 Tool/Special 1 | . . . 1 Average Slot Usage (%) 86 | . 81 82 89 Engine 14 | . 14 14 14 Leg 27 | . 28 25 28 Storage 13 | . 12 14 14 Processor 1 | . . . 2 Energy Gun 17 | . 25 21 13 Ballistic Gun 9 | . . 6 12 Peak Build Rating 35 | 3 8 10 35 Average Rating 13 | 2 6 8 16 On Entrance 5 | . 3 7 10 Naked Turns . | . . . . Heaviest Build 32 | 3 27 30 32 Greatest Support 40 | 3 20 20 40 Greatest Overweight (x) 2 | . 1 2 1 Average Overweight (x) . | . . 1 . Largest Inventory Capacity 15 | 5 15 15 15 Average Capacity 14 | 5 12 15 15 Most Carried 15 | 5 9 13 15 Average Carried 12 | 2 6 11 13 Final Capacity 15 | 5 15 15 15 Final Carried 15 | 5 9 11 15 Class Distribution -------------------- 57% | Mutant 42% | Scavenger-Mutant Dominant Class ---------------- Mutant | -10/Materials Mutant | -10/Subcaves Scavenger-Mutant | -7/Scraptown Resources | -11 -10 -10 -7 ----------- Run | Yrd Mat Sub Scr Matter Collected 492 | 227 61 92 112 Remotely . | . . . . Salvage Created 280 | . 45 235 . Parts 19 | . 3 16 . Haulers Intercepted . | . . . . Recyclers Shooed . | . . . . Parts Field Recycled . | . . . . Retrieved Matter . | . . . . Parts Self-Destructed 15 | . . 15 . Prevented . | . . . . Kills | -11 -10 -10 -7 ------- Run | Yrd Mat Sub Scr Combat Hostiles Destroyed 9 | . 1 8 . Guns 8 | . 1 7 . Classes Destroyed 3 | . 1 2 . Swarmer 3 | . . 3 . Grunt 1 | . 1 . . Subdweller 5 | . . 5 . Best Kill Streak 3 | . 1 3 . Combat Bots Only 3 | . 1 3 . Max Kills in Single Turn 1 | . 1 1 . Gunslinging . | . . . . Exploded . | . . . . Melee . | . . . . Uniques/NPCs Destroyed . | . . . . Combat | -11 -10 -10 -7 -------- Run | Yrd Mat Sub Scr Hostile Shots Fired 55 | . . 49 6 Missed 12 | . . 10 2 Hits 43 | . . 39 4 Melee 1 | . . . 1 Projectile 42 | . . 39 3 AOE 4 | . . 4 . Critical Strikes 1 | . . . 1 Damage Taken 1037 | . 65 900 72 Core 204 | . 35 165 4 Absorbed by Shields . | . . . . Core Remaining (%) 100 | 100 . . . Volleys Fired 32 | . 3 28 1 Largest 2 | . 2 2 2 Hottest 100 | . 100 100 95 Shots Fired 63 | . 6 55 2 Gun 63 | . 6 55 2 Cannon . | . . . . Launcher . | . . . . Special . | . . . . Kinetic 12 | . . 11 1 Thermal 51 | . 6 44 1 Explosive . | . . . . Electromagnetic . | . . . . Robot Hit Streak 10 | . 2 10 1 Robot Miss Streak 2 | . 1 2 1 Penetration Max . | . . . . Secondary Targets . | . . . . Shots Hit Robots 44 | . 3 40 1 Core Hits 14 | . 1 13 . Critical Kills . | . . . . Critical Parts Destroyed . | . . . . Critical Strikes 3 | . 1 2 . Burn 3 | . 1 2 . Melee Attacks 9 | . . . 9 Impact . | . . . . Slashing 9 | . . . 9 Piercing . | . . . . Sneak Attacks . | . . . . Combat Hostiles . | . . . . Follow-up Attacks . | . . . . Damage Inflicted 679 | . 38 615 26 Guns 679 | . 38 615 26 Cannons . | . . . . Explosions . | . . . . Melee . | . . . . Ramming . | . . . . Kinetic 193 | . . 179 14 Thermal 486 | . 38 436 12 Explosive . | . . . . Electromagnetic . | . . . . Impact . | . . . . Slashing . | . . . . Piercing . | . . . . Highest Corruption . | . . . . Average Corruption . | . . . . Corruption Purged . | . . . . Corruption Blocked . | . . . . Overload Shots . | . . . . Overflow Damage . | . . . . Projectiles . | . . . . Explosions . | . . . . Melee . | . . . . Knockbacks . | . . . . Impact . | . . . . Kinetic . | . . . . Secondary . | . . . . Self-Inflicted Damage . | . . . . Shots . | . . . . Rammed . | . . . . Targets Rammed . | . . . . Kicked . | . . . . Crushed . | . . . . Highest Temperature 41 | . 41 . 36 Average Temperature 19 | . 20 . 16 Received Heat Transfer 130 | . . 69 61 Siege Activations . | . . . . Martial Activations . | . . . . Shielding Activations . | . . . . Robots Disrupted . | . . . . Combat Hostiles . | . . . . Robots Corrupted . | . . . . Combat Hostiles . | . . . . Parts Fried . | . . . . Impact Corruptions . | . . . . Robots Melted 1 | . . 1 . Combat Hostiles 1 | . . 1 . Parts Melted 3 | . . 3 . Heat Transferred 1554 | . 185 1332 37 Parts Sabotaged . | . . . . Parts Stolen . | . . . . Parts Stripped . | . . . . Power Chain Reactions . | . . . . Alert | -11 -10 -10 -7 ------- Run | Yrd Mat Sub Scr Maximum Alert Level . | . . . . Low Security (%) 100 | 100 100 . . Level 1 . | . . . . Level 2 . | . . . . Level 3 . | . . . . Level 4 . | . . . . Level 5 . | . . . . High Security . | . . . . Max Security . | . . . . Peak Influence 30 | . 30 . . Initial . | . . . . Average 3 | . 3 . . Influence Increases 120 | . 50 70 . Destroy 0b10 Robot/C 80 | . 20 60 . Destroy Leader 20 | . 10 10 . Successful Hack 20 | . 20 . . Influence Decreases 120 | . 50 70 . Time Decay 120 | . 50 70 . Squads Dispatched . | . . . . Investigation . | . . . . Extermination . | . . . . Reinforcement . | . . . . Assault . | . . . . Garrison . | . . . . Intercept . | . . . . Searches Triggered . | . . . . Construction Impeded . | . . . . Haulers Reinforced . | . . . . Active Scanning Responses . | . . . . Cargo Convoy Interrupts . | . . . . Stealth | -11 -10 -10 -7 --------- Run | Yrd Mat Sub Scr Distress Signals . | . . . . Communications Jammed . | . . . . Distress Signals . | . . . . Times Spotted 31 | . 4 9 18 Peak Tracking Total 5 | . 2 3 5 Tactical Retreats . | . . . . Traps | -11 -10 -10 -7 ------- Run | Yrd Mat Sub Scr Traps Triggered 4 | . 2 2 . Indirectly . | . . . . Trap Hack Attempts . | . . . . Triggered . | . . . . Disarmed . | . . . . Reprogrammed . | . . . . Reused . | . . . . Traps Extracted . | . . . . Installed . | . . . . Triggered . | . . . . Machines | -11 -10 -10 -7 ---------- Run | Yrd Mat Sub Scr Machines Disabled 1 | . . . 1 Max in Single Turn 1 | . . . 1 Machines Repaired . | . . . . Machines Dismantled . | . . . . Machines Sabotaged . | . . . . Overloaded Fab Kills . | . . . . Hacking | -11 -10 -10 -7 --------- Run | Yrd Mat Sub Scr Machines Accessed 11 | . 3 . 8 Terminals 3 | . 3 . . Fabricators . | . . . . Repair Stations . | . . . . Recycling Units . | . . . . Scanalyzers . | . . . . Garrison Access . | . . . . Total Hacks 63 | . 8 . 55 Successful 59 | . 4 . 55 Failed 3 | . 3 . . Catastrophic . | . . . . Database Lockouts 1 | . 1 . . Manual 3 | . 3 . . Terminals 8 | . 8 . . Fabricators . | . . . . Repair Stations . | . . . . Recycling Units . | . . . . Scanalyzers . | . . . . Garrison Access . | . . . . Terminal Hacks 59 | . 4 . 55 Record 47 | . . . 47 Robot Analysis 8 | . 1 . 7 Prototype ID Bank 1 | . 1 . . Emergency Access Points 1 | . 1 . . Zone Layout 1 | . 1 . . Proto ID Catalog 1 | . . . 1 Fabricator Hacks . | . . . . Repair Station Hacks . | . . . . Recycling Unit Hacks . | . . . . Scanalyzer . | . . . . Garrison Access Hacks . | . . . . Unauthorized Hacks . | . . . . Terminals . | . . . . Fabricators . | . . . . Repair Stations . | . . . . Recycling Units . | . . . . Scanalyzers . | . . . . Garrison Access . | . . . . Data Cores Recovered . | . . . . Used . | . . . . Hacking Detections 2 | . 2 . . Full Trace Events . | . . . . Feedback Events . | . . . . Feedback Blocked . | . . . . Robot Schematics Acquired . | . . . . Robots Built . | . . . . Authchips . | . . . . Time . | . . . . Total Robot Build Rating . | . . . . Part Schematics Acquired . | . . . . Parts Built . | . . . . Authchips . | . . . . Time . | . . . . Total Part Build Rating . | . . . . Parts Repaired . | . . . . Time . | . . . . Parts Recycled . | . . . . Recycled Matter . | . . . . Retrieved Matter . | . . . . Retrieved Components . | . . . . Parts Scanalyzed . | . . . . Part Schematics Acquired . | . . . . Parts Damaged . | . . . . Bothacking | -11 -10 -10 -7 ------------ Run | Yrd Mat Sub Scr Used RIF Installer . | . . . . Robots Hacked . | . . . . Non-combat . | . . . . Combat . | . . . . Robot Hacks Applied . | . . . . Relay Couplers Released . | . . . . Fabnet Peak Effective % . | . . . . Robots Rewired . | . . . . Allies Hacked . | . . . . Hacks Repelled . | . . . . Allies | -11 -10 -10 -7 -------- Run | Yrd Mat Sub Scr Total Allies . | . . . . Largest Group . | . . . . Highest-Rated Group . | . . . . Highest-Rated Ally . | . . . . Total Orders . | . . . . Ally Attacks . | . . . . Total Damage . | . . . . Kills . | . . . . Allies Corrupted . | . . . . Allies Melted 2 | . . . 2 Intel | -11 -10 -10 -7 ------- Run | Yrd Mat Sub Scr Active Infowar (turns) . | . . . . Robot Analysis Total 8 | . 1 . 7 Derelict Logs Recovered 3 | . . . 3 Drone Launches . | . . . . Drone Recoveries . | . . . . Exploration | -11 -10 -10 -7 ------------- Run | Yrd Mat Sub Scr Turns Passed 4337 | 25 385 1452 2475 Spaces Moved 2399 | 32 229 685 1453 Core 64 | 32 32 . . Treads . | . . . . Legs 2335 | . 197 685 1453 Wheels . | . . . . Hover . | . . . . Flight . | . . . . Fastest Speed 50 | 50 50 190 125 Average Speed 172 | 50 152 197 165 Slowest Speed 260 | 50 190 260 195 Overloaded Moves . | . . . . Propulsion Burnouts . | . . . . Robots Hopped . | . . . . Potential Cave-ins . | . . . . Cave-ins Triggered . | . . . . Exploration Rate (%) 44 | 3 40 48 88 Regions Visited 3 Branch Regions 2 Pre-discovered Areas 5 | . . . 5 Known Exits Taken . | . . . . Unknown Exits Taken 3 | 1 1 1 . Scrap Searched 5 | . . . 5 Spaces Dug 2 | . . . 2 Terrain Destroyed 2 | . . . 2 Melee 2 | . . . 2 Projectile . | . . . . AOE . | . . . . Terrain Rammed . | . . . . Walls Destroyed . | . . . . Machines Disabled . | . . . . Actions | -11 -10 -10 -7 --------- Run | Yrd Mat Sub Scr Total 2545 | 39 259 731 1516 Wait 19 | . 13 4 2 Move 2396 | 31 228 684 1453 Hop . | . . . . Pick Up 40 | 5 8 8 19 Fast Attach 7 | 3 . 1 3 Attach 11 | . 4 6 1 Detach . | . . . . Swap 9 | . 2 . 7 Drop 23 | . 1 . 22 Fire 32 | . 3 28 1 Melee 8 | . . . 8 Ram . | . . . . Kick . | . . . . Crush . | . . . . Escape Stasis . | . . . . Rewire . | . . . . Trap . | . . . . Miscellaneous . | . . . . Route ------- -11/Scrapyard -10/Materials (discovered 2 exits: [*Mat] / [*Sub]) -10/Subcaves (discovered 2 exits: *Scr x2) -7/Scraptown (discovered 2 exits: *Fac x2) History --------- Turn | Location | Event 16 | -11/Scrapyard | Discovered new exit (range 15) 26 | -11/Scrapyard | Entered Materials 27 | -10/Materials | Met a group of wandering Federalists 36 | -10/Materials | Central database locked down 58 | -10/Materials | Discovered new exit (range 9) 110 | -10/Materials | Discovered new exit (range 15) 316 | -10/Materials | Build established: Mutant 411 | -10/Materials | Entered Subcaves 412 | -10/Subcaves | Continued accompanying wandering Federalists (5) 412 | -10/Subcaves | Approached by a straggling Scientist 625 | -10/Subcaves | Shifting Twisted Machinery released Mak. Thermal Plating 635 | -10/Subcaves | Shifting Twisted Machinery released Sub. Laser 1206 | -10/Subcaves | Core integrity fell below 50% 1238 | -10/Subcaves | Lost 4 parts (2n2w) 1504 | -10/Subcaves | Scientist uncovered a shortcut to Scraptown 1693 | -10/Subcaves | Build established: Scavenger-Mutant 1863 | -10/Subcaves | Entered Scraptown 2190 | -7/Scraptown | Scanned Subdweller tech in exchange for log data 2199 | -7/Scraptown | Learned Factory emergency access door positions 2201 | -7/Scraptown | Learned location of Armory (-4) 2203 | -7/Scraptown | Learned Factory garrison access intel 2247 | -7/Scraptown | Visited Supply Room 2275 | -7/Scraptown | Visited Shadow of the Wyrm 2290 | -7/Scraptown | Visited Cyclists 2323 | -7/Scraptown | Visited Comm Corps 2618 | -7/Scraptown | Heard Great Nut preacher, LISTEN AND RECITE! 2762 | -7/Scraptown | Visited Assassins FH 2821 | -7/Scraptown | Visited The Evicted 2832 | -7/Scraptown | Visited Symbiants 2995 | -7/Scraptown | Discovered new exit (range 11) 3157 | -7/Scraptown | Visited UFD Registry 3157 | -7/Scraptown | Registered with UFD as "Nanoguard" 3195 | -7/Scraptown | Visited LU-1G1's Boring Crew 3223 | -7/Scraptown | Visited Junk Repository 3305 | -7/Scraptown | Visited Abandonware Association 3324 | -7/Scraptown | Learned abandonware demo "REBOOT5.EXE" 3324 | -7/Scraptown | Learned abandonware demo "SHUTEYE.EXE" 3523 | -7/Scraptown | Build established: Mutant 3526 | -7/Scraptown | Visited Science Guys 3585 | -7/Scraptown | Visited DA-N13 Charitable Foundation 3602 | -7/Scraptown | Found DCF Scrap (29 items) 3673 | -7/Scraptown | Visited Scrapoid Pod Storage 3681 | -7/Scraptown | Found Scrapoid Pod 3708 | -7/Scraptown | Visited Cartography Club 3741 | -7/Scraptown | Found Surveybot 17 Chip 3806 | -7/Scraptown | Learned location of Upper Caves (-4) 3806 | -7/Scraptown | Learned location of Cetus (-4) 3806 | -7/Scraptown | Learned location of Quarantine (-2) 3806 | -7/Scraptown | Learned 20 Factory zone layouts 3806 | -7/Scraptown | Learned 4 Storage zone layouts 3806 | -7/Scraptown | Learned 20 Upper Caves zone layouts 3806 | -7/Scraptown | Learned 4 Hub_04(d) zone layouts 3806 | -7/Scraptown | Learned location of 1 exit from Proximity Caves 3806 | -7/Scraptown | Learned location of 3 exits from Factory 3806 | -7/Scraptown | Learned 20 Proximity Caves zone layouts 3856 | -7/Scraptown | Visited Scrap Suit Storage 3876 | -7/Scraptown | Visited A0-MCA Data Center 3884 | -7/Scraptown | Given a B+ rating by A0-MCA 3887 | -7/Scraptown | Found A0-MCA's Component Scanner 3923 | -7/Scraptown | Visited Analyses Database 4008 | -7/Scraptown | Met Optimus 4008 | -7/Scraptown | Accepted into 0bPrime 4069 | -7/Scraptown | Civil war broke out across Scraptown 4092 | -7/Scraptown | Core integrity fell below 20% 4143 | -7/Scraptown | Identified exit to Factory 4148 | -7/Scraptown | Lost 7 allies 4261 | -7/Scraptown | Lost 3 allies 4272 | -7/Scraptown | Optimus destroyed in the chaos of civil war 4338 | -7/Scraptown | Self-destructed Last Messages --------------- 04230_ D9-DD2(j) destroyed. 04230_ BL-W6G(h) suffers critical hit (Destroy). 04230_ BL-W6G(h) destroyed. 04231_ IB-W19(g) destroyed. 04241_ Dropped Particle Gun. 04242_ Acquired Scythe. 04246_ Acquired 10 matter. 04259_ Component scanned: Enh. Autogun [Z6-I6E(E)]. 04270_ Dropped Sub. Machine Gun. 04270_ Acquired Mak. Hacking Suite. 04272_ ANNOUNCEMENT: The traitor Optimus has been dealt with. Put down any remaining collaborators. 04286_ Bolt penetrates NG-KQI(j). 04288_ Bolt penetrates Machine. 04289_ NG-KQI(j) destroyed. 04321_ 2D-7NB(j) switches sides. 04321_ Super Scrap Suits breached. 04323_ LOCAL NARROWCAST: You don't have permission to be in here, but that's okay because it's just doing its job as a honeypot for traitors, TRAITOR! Map ----- +----------------------------------------------------+ | | | | | | | ?????????????????????????????????????????????????? | | ?????????????????????????????????????????????????? | | ?????????????????????????????????????????????????? | | ?????????????????????????????????????????????????? | | ?????????????????????????????????????????????????? | | ?????????????????????????????????????????????????? | | ?????????????????????????????????????????????????? | | ?????????????????????????????????????????????????? | | ?????????????????????????????????????????????????? | | ?????????????????????????????????????????????????? | | ?????????????????????????????????????????????????? | | ?????????????????????????????????????????????????? | | ?????????????????????????????????????????????????? | | ???????????????????????????????####??????????????? | | ??????????????????????????????## ##??????